bitfinex/quotes_SOLUSD_20250930
["timestamp","ask_amount","ask_price","bid_price","bid_amount"]
[1759269755839,4.95151896,210.46,210.39,35.88]
[1759269756136,0.2,210.46,210.4,1.00432314]
[1759269756346,4.95150105,210.46,210.41,0.72]
[1759269756760,0.2,210.46,210.41,0.86216157]
[1759269758164,5.67152919,210.46,210.42,35.14]
[1759269758373,4.95152919,210.46,210.42,35.14]
[1759269758540,16.83027099,210.46,210.42,35.86]
[1759269758866,16.83027099,210.46,210.43,35.12]
[1759269759074,16.83027099,210.46,210.44,35.12]
[1759269759244,16.83027099,210.46,210.45,0.72]
[1759269759245,0.2,210.46,210.45,0.72]
[1759269760033,4.9516618,210.46,210.39,20.8]
[1759269760240,4.9516618,210.46,210.4,35.1]
[1759269760438,0.72,210.45,210.4,35.1]
[1759269760739,0.72,210.44,210.4,35.1]
[1759269761371,0.72,210.43,210.38,37.08]
[1759269761541,40.5878872,210.46,210.39,14.79090177]
[1759269761542,0.2,210.46,210.39,14.79090177]
[1759269761746,0.2,210.46,210.43,20.8]
[1759269762053,0.2,210.46,210.44,35.1]
[1759269762251,0.2,210.46,210.45,0.28432314]
[1759269762551,0.2,210.46,210.45,1.00432314]
[1759269763166,0.2,210.5,210.45,21.80432314]
[1759269763357,0.2,210.5,210.46,0.72]
[1759269763952,0.1,210.56,210.5,20.8]
[1759269764152,0.1,210.56,210.51,40.53031745]
[1759269764552,0.1,210.56,210.52,0.72]
[1759269764753,0.1,210.56,210.54,20.8]
[1759269764951,0.1,210.56,210.55,35.8]
[1759269765349,0.1,210.56,210.55,36.08432314]
[1759269766249,0.1,210.56,210.55,40.83378882]
[1759269766564,0.1,210.56,210.55,0.72]
[1759269766756,0.1,210.56,210.55,56.88432314]
[1759269768065,0.1,210.56,210.55,56.6]
[1759269768270,0.1,210.56,210.55,35.76]
[1759269768494,0.1,210.56,210.55,35.04]
[1759269768793,4.84924012,210.56,210.55,35.02]
[1759269769074,0.1,210.56,210.55,35.02]
[1759269769574,0.1,210.56,210.55,35.74]
[1759269770184,0.1,210.56,210.55,40.48946568]
[1759269771756,0.1,210.56,210.55,35.74]
[1759269772479,0.1,210.56,210.55,35.72]
[1759269773277,0.1,210.56,210.55,40.46946568]
[1759269773963,0.1,210.56,210.55,35.72]
[1759269774164,0.1,210.56,210.55,35.0]
[1759269774555,0.1,210.56,210.55,35.71]
[1759269775278,0.1,210.56,210.55,35.0]
[1759269775456,4.84924012,210.56,210.55,35.0]
[1759269776369,0.1,210.56,210.55,35.0]
[1759269776673,0.1,210.56,210.55,35.71]
[1759269776880,0.1,210.56,210.55,40.45946568]
[1759269777869,0.1,210.56,210.55,35.71]
[1759269778562,0.1,210.56,210.55,54.33938283]
[1759269779184,0.1,210.56,210.55,19.33938283]
[1759269779362,0.1,210.56,210.55,54.23938283]
[1759269782699,0.67,210.72,210.61,0.28432314]
[1759269782856,0.67,210.72,210.64,0.28432314]
[1759269783055,0.67,210.72,210.65,35.55]
[1759269783464,0.2185981,210.77,210.66,0.99432314]
[1759269783675,5.41475208,210.76,210.67,34.84]
[1759269783879,0.67,210.75,210.67,34.84]
[1759269784052,0.67,210.75,210.68,5.45653502]
[1759269784258,25.54476139,210.76,210.69,35.53]
[1759269784771,4.96311537,210.77,210.7,0.71]
[1759269784977,5.63311537,210.77,210.7,0.71]
[1759269786767,0.8885981,210.77,210.7,5.45600414]
[1759269787159,5.63312934,210.77,210.7,5.45600414]
[1759269787767,4.96312934,210.77,210.7,4.74600414]
[1759269787960,16.82439991,210.77,210.7,0.28432314]
[1759269788161,0.77,210.78,210.71,0.71]
[1759269788380,0.77,210.78,210.72,34.78]
[1759269788381,0.1,210.78,210.72,34.78]
[1759269788890,0.1,210.78,210.73,0.99432314]
[1759269789095,0.77,210.78,210.74,34.76]
[1759269789396,0.67,210.77,210.62,57.04]
[1759269789594,0.67,210.76,210.64,35.47]
[1759269789836,0.67,210.75,210.65,14.30559401]
[1759269790096,4.74540881,210.73,210.66,5.74126288]
[1759269790258,4.74540881,210.73,210.67,34.76]
[1759269792981,0.67,210.72,210.63,0.28432314]
[1759269793169,0.67,210.72,210.64,34.72]
[1759269793494,6.02962327,210.71,210.64,34.72]
[1759269793717,0.67,210.7,210.64,34.72]
[1759269794294,20.8,210.72,210.65,0.71]
[1759269794295,4.74585923,210.71,210.65,0.71]
[1759269795388,4.74585923,210.71,210.64,35.43]
[1759269796398,4.74585923,210.71,210.64,34.72]
[1759269796607,0.67,210.75,210.65,0.99432314]
[1759269796807,4.74495848,210.75,210.66,0.71]
[1759269797193,25.54495848,210.75,210.66,0.71]
[1759269798001,20.8,210.74,210.66,0.71]
[1759269798912,20.8,210.74,210.67,4.74676033]
[1759269798913,20.8,210.73,210.67,4.74676033]
[1759269799101,20.8,210.73,210.68,35.38]
[1759269799305,4.74492854,210.76,210.69,0.72]
[1759269799702,21.51,210.75,210.67,0.72]
[1759269800018,0.71,210.75,210.68,34.64]
[1759269800798,4.74518363,210.74,210.68,34.64]
[1759269801413,4.74518363,210.74,210.68,35.36]
[1759269801619,4.74518363,210.74,210.68,40.10649648]
[1759269802221,4.74518363,210.74,210.68,35.36]
[1759269802610,4.74518363,210.74,210.68,40.28767239]
[1759269803310,0.1,210.78,210.69,0.68]
[1759269803699,0.1,210.78,210.71,20.8]
[1759269803902,0.1,210.78,210.72,35.26]
[1759269804115,4.8443829,210.78,210.72,35.26]
[1759269805327,4.8443829,210.78,210.73,4.74540881]
[1759269805498,4.8443829,210.78,210.73,5.42540881]
[1759269805698,4.8443829,210.78,210.73,0.68]
[1759269805921,5.5443829,210.78,210.73,0.68]
[1759269806716,5.5443829,210.78,210.72,34.58]
[1759269807022,4.8443829,210.78,210.72,35.26]
[1759269807235,0.1,210.78,210.73,0.96432314]
[1759269807406,0.1,210.78,210.74,0.68]
[1759269807807,0.1,210.78,210.75,0.68]
[1759269808104,0.1,210.78,210.76,35.22]
[1759269808509,0.1,210.78,210.77,0.68]
[1759269808704,0.1,210.78,210.76,34.54]
[1759269808925,0.1,210.78,210.76,35.22]
[1759269810003,0.1,210.78,210.76,39.2846836]
[1759269810199,0.1,210.78,210.77,0.68]
[1759269811625,0.1,210.78,210.77,5.42450823]
[1759269812915,0.1,210.78,210.77,19.30442538]
[1759269813122,0.1,210.81,210.78,13.87991715]
[1759269813302,0.1,210.81,210.8,0.28432314]
[1759269813502,0.1,210.81,210.8,35.44432314]
[1759269815525,0.1,210.81,210.8,40.18815615]
[1759269816819,0.1,210.81,210.8,77.18815615]
[1759269818514,0.8,210.81,210.8,37.0]
[1759269818721,5.54360798,210.81,210.8,71.4]
[1759269819115,0.1,210.81,210.8,72.08]
[1759269819519,0.1,210.81,210.8,77.10815615]
[1759269820841,0.1,210.81,210.8,72.22216157]
[1759269821148,0.1,210.81,210.8,71.38]
[1759269821639,0.1,210.81,210.8,72.06]
[1759269822232,0.1,210.81,210.8,76.80383301]
[1759269822426,0.1,210.81,210.8,77.08815615]
[1759269823821,0.5,210.83,210.8,102.5433327]
[1759269824024,0.5,210.83,210.81,14.55991715]
[1759269824232,0.5,210.83,210.82,48.19991715]
[1759269824438,0.5,210.83,210.82,48.87991715]
[1759269825425,0.1,210.86,210.83,13.87991715]
[1759269825636,0.1,210.86,210.84,34.32]
[1759269825823,0.1,210.86,210.84,39.74279526]
[1759269826426,0.1,210.86,210.84,39.06279526]
[1759269826632,0.1,210.86,210.85,0.68]
[1759269826848,0.1,210.86,210.84,39.06279526]
[1759269827058,0.1,210.86,210.84,39.74279526]
[1759269827553,0.1,210.86,210.84,39.74277463]
[1759269827757,0.1,210.86,210.85,0.96432314]
[1759269827927,0.1,210.86,210.85,5.70703122]
[1759269828249,0.1,210.86,210.85,19.30262523]
[1759269831475,0.1,210.86,210.85,60.46270808]
[1759269831769,0.1,210.86,210.85,74.34262523]
[1759269832178,0.1,210.87,210.86,13.59559401]
[1759269832480,0.1,210.87,210.86,14.27559401]
[1759269833041,0.1,210.87,210.86,48.49559401]
[1759269834275,0.1,210.87,210.86,53.23807717]
[1759269834900,0.1,210.87,210.86,25.54248316]
[1759269835165,0.1,210.87,210.86,60.0268063]
[1759269835371,0.1,210.87,210.86,74.34240031]
[1759269843462,0.1,210.87,210.86,73.62240031]
[1759269844360,0.1,210.87,210.86,74.34240031]
[1759269844780,0.1,210.87,210.86,39.42240031]
[1759269844967,0.1,210.87,210.86,73.58240031]
[1759269845781,0.1,210.87,210.86,74.30240031]
[1759269848071,0.1,210.88,210.87,13.87991715]
[1759269848266,0.1,210.88,210.87,93.69991715]
[1759269849266,0.1,210.98,210.87,93.69991715]
[1759269849471,0.78,210.96,210.9,20.8]
[1759269849669,0.78,210.96,210.92,4.74113407]
[1759269849869,0.1,210.96,210.92,20.8]
[1759269850083,0.68,210.95,210.93,34.16]
[1759269850281,0.68,210.94,210.93,34.16]
[1759269850479,0.18,210.94,210.93,34.16]
[1759269851286,0.18,210.94,210.88,20.8]
[1759269851489,1.50872287,210.95,210.89,34.16]
[1759269851683,1.50872287,210.95,210.9,34.16]
[1759269851891,4.74068455,210.94,210.9,34.16]
[1759269852197,1.50872287,210.93,210.91,34.16]
[1759269852497,1.50872287,210.93,210.89,36.96]
[1759269852498,18.1011188,210.94,210.92,34.16]
[1759269852692,4.74068455,210.94,210.93,34.16]
[1759269852910,0.1,210.96,210.93,34.16]
[1759269853089,0.52,210.95,210.93,34.16]
[1759269853277,0.52,210.94,210.93,34.16]
[1759269854380,0.1,210.96,210.93,34.16]
[1759269854583,0.62,210.96,210.93,34.16]
[1759269855505,0.52,210.95,210.93,34.16]
[1759269855804,0.52,210.94,210.93,34.16]
[1759269856300,5.26068455,210.94,210.89,36.96]
[1759269856495,0.52,210.93,210.89,36.96]
[1759269856680,0.52,210.92,210.9,34.16]
[1759269857001,0.52,210.91,210.9,34.16]
[1759269857198,1.50872287,210.93,210.9,34.16]
[1759269857427,1.50872287,210.92,210.9,34.16]
[1759269857604,0.28432314,211.0,210.9,34.16]
[1759269857907,1.50872287,210.93,210.9,34.16]
[1759269858196,1.50872287,210.94,210.9,34.16]
[1759269858403,1.50872287,210.96,210.9,34.16]
[1759269858792,1.50872287,210.94,210.89,36.96]
[1759269858991,1.50872287,210.92,210.91,34.16]
[1759269860312,6.24985694,210.92,210.91,34.16]
[1759269861187,4.74113407,210.92,210.91,34.16]
[1759269862392,13.36067526,210.94,210.91,34.16]
[1759269862600,11.85195239,210.94,210.91,34.16]
[1759269862902,1.50872287,210.93,210.91,34.16]
[1759269863610,1.50872287,210.92,210.89,36.96]
[1759269863789,11.85195239,210.94,210.89,36.96]
[1759269863790,1.50872287,210.9,210.89,36.96]
[1759269864211,1.50872287,210.9,210.89,71.12]
[1759269864392,6.25030655,210.9,210.89,71.12]
[1759269865123,6.25030655,210.9,210.84,36.98]
[1759269865124,30.19113691,210.9,210.88,36.98]
[1759269865414,1.50872287,210.89,210.88,36.98]
[1759269865816,30.19113691,210.9,210.88,36.98]
[1759269865995,16.5955429,210.9,210.88,36.98]
[1759269866196,30.19113691,210.9,210.89,34.16]
[1759269867212,31.69985978,210.9,210.88,36.98]
[1759269867414,1.50872287,210.89,210.88,36.98]
[1759269868316,2.35681239,210.89,210.88,71.14]
[1759269868500,7.09862091,210.89,210.88,71.14]
[1759269872516,4.74180852,210.89,210.88,71.14]
[1759269872915,7.09862091,210.89,210.88,71.14]
[1759269873616,4.74180852,210.89,210.88,71.14]
[1759269874721,4.74180852,210.89,210.88,71.85]
[1759269875916,2.35681239,210.92,210.88,71.85]
[1759269876103,2.35681239,210.92,210.89,0.71]
[1759269876305,4.74135887,210.91,210.9,34.16]
[1759269877802,4.74135887,210.91,210.9,34.87]
[1759269878004,14.20951836,210.93,210.9,34.87]
[1759269878912,14.20951836,210.93,210.9,34.16]
[1759269879117,2.35681239,210.92,210.9,34.16]
[1759269879422,2.35681239,210.91,210.9,34.16]
[1759269881521,7.09817126,210.91,210.9,34.16]
[1759269881715,18.95156844,210.91,210.9,34.16]
[1759269882018,16.59475605,210.91,210.9,34.16]
[1759269882399,18.95156844,210.91,210.9,34.16]
[1759269882599,16.59475605,210.91,210.9,34.16]
[1759269882825,18.95156844,210.91,210.9,34.16]
[1759269883008,16.59475605,210.91,210.9,34.16]
[1759269884803,18.95156844,210.91,210.9,34.16]
[1759269886516,16.59475605,210.91,210.9,34.16]
[1759269887028,18.95156844,210.91,210.9,34.16]
[1759269887214,16.59475605,210.91,210.9,34.87]
[1759269887414,18.95156844,210.91,210.9,34.87]
[1759269888131,18.95156844,210.91,210.9,34.16]
[1759269888702,18.95156844,210.91,210.88,36.98]
[1759269888908,2.35681239,210.89,210.88,36.98]
[1759269889104,7.09862091,210.89,210.88,71.12]
[1759269889714,4.74180852,210.89,210.88,71.83]
[1759269891237,2.35681239,210.89,210.88,71.83]
[1759269893029,2.35681239,210.89,210.88,71.12]
[1759269893330,7.09862091,210.89,210.88,71.82]
[1759269893628,7.09862091,210.89,210.88,71.12]
[1759269893828,7.09862091,210.89,210.88,71.82]
[1759269895428,2.35681239,210.9,210.88,71.82]
[1759269896636,2.35681239,210.9,210.89,0.7]
[1759269897021,2.35681239,210.9,210.88,71.12]
[1759269897227,2.35681239,210.9,210.88,71.82]
[1759269897730,20.8,210.87,210.81,36.98]
[1759269897934,20.8,210.85,210.82,34.14]
[1759269898122,2.35681239,210.83,210.82,34.14]
[1759269898633,13.59559401,210.84,210.82,34.14]
[1759269898941,2.35681239,210.83,210.82,34.14]
[1759269899328,2.35681239,210.83,210.81,36.98]
[1759269899631,2.35681239,210.82,210.8,36.98]
[1759269899835,7.10042037,210.81,210.8,36.98]
[1759269900012,7.10042037,210.81,210.68,0.2]
[1759269900013,13.59559401,210.8,210.75,36.98]
[1759269900213,2.35681239,210.76,210.75,36.98]
[1759269900646,2.35681239,210.76,210.75,71.12]
[1759269900813,2.35681239,210.76,210.74,36.98]
[1759269900814,13.59559401,210.75,210.74,36.98]
[1759269901020,15.9524064,210.75,210.74,36.98]
[1759269901719,7.10177087,210.75,210.74,36.98]
[1759269902045,4.74495848,210.75,210.74,71.12]
[1759269902242,27.90177087,210.75,210.74,71.12]
[1759269903114,25.54495848,210.75,210.74,71.82]
[1759269903636,4.74473248,210.77,210.74,71.82]
[1759269903818,2.35681239,210.81,210.75,0.7]
[1759269904132,2.35681239,210.82,210.76,34.14]
[1759269904340,2.35681239,210.82,210.77,0.7]
[1759269904526,2.35681239,210.82,210.78,34.14]
[1759269904848,2.35681239,210.79,210.75,0.7]
[1759269905142,2.35681239,210.76,210.74,36.98]
[1759269905445,0.28432314,210.79,210.75,34.14]
[1759269905617,20.8,210.76,210.74,36.98]
[1759269905819,25.54495848,210.75,210.74,37.68]
[1759269907057,4.74495848,210.75,210.74,71.82]
[1759269907745,11.86148603,210.77,210.74,71.82]
[1759269908045,11.86148603,210.77,210.75,0.7]
[1759269908249,11.86148603,210.77,210.76,34.14]
[1759269908428,11.86148603,210.77,210.76,34.84]
[1759269908751,4.7440301,210.8,210.76,34.84]
[1759269909061,4.74315799,210.83,210.77,0.7]
[1759269909362,7.09997038,210.83,210.78,34.14]
[1759269909546,23.71051844,210.88,210.79,0.7]
[1759269909547,4.74299041,210.84,210.79,0.7]
[1759269909727,4.74299041,210.84,210.8,34.14]
[1759269909929,4.74225826,210.87,210.81,0.7]
[1759269910129,4.74225826,210.87,210.82,34.14]
[1759269910437,4.74225826,210.87,210.83,0.7]
[1759269910647,4.74225826,210.87,210.84,34.14]
[1759269910955,4.74225826,210.87,210.85,0.7]
[1759269911156,2.35681239,210.92,210.86,34.14]
[1759269911455,2.35681239,210.92,210.87,0.7]
[1759269911628,2.35681239,210.92,210.88,34.84]
[1759269911836,4.74135887,210.91,210.89,0.7]
[1759269912028,4.74135887,210.91,210.9,34.14]
[1759269912457,4.74135887,210.91,210.9,34.84]
[1759269913649,13.59559401,210.9,210.85,0.7]
[1759269913839,4.74203338,210.88,210.86,34.84]
[1759269914254,7.09884577,210.88,210.86,34.84]
[1759269914837,4.74203338,210.88,210.87,0.7]
[1759269915655,4.74180852,210.89,210.87,0.7]
[1759269916636,7.09862091,210.89,210.87,0.7]
[1759269916834,18.95314222,210.89,210.86,34.14]
[1759269917133,2.35681239,210.87,210.83,0.7]
[1759269917340,2.35681239,210.86,210.81,0.7]
[1759269917634,2.35681239,210.86,210.82,0.7]
[1759269917959,16.59632983,210.89,210.8,0.72]
[1759269917960,2.35681239,210.83,210.8,0.72]
[1759269918253,2.35681239,210.82,210.78,0.72]
[1759269918473,16.59947829,210.85,210.78,0.72]
[1759269918474,2.35681239,210.81,210.78,0.72]
[1759269918655,2.35681239,210.81,210.79,0.72]
[1759269918957,2.35681239,210.82,210.79,0.72]
[1759269919357,2.35681239,210.82,210.8,0.72]
[1759269919742,2.35681239,210.81,210.73,20.8]
[1759269919946,2.35681239,210.81,210.77,0.72]
[1759269920157,2.35681239,210.8,210.73,20.8]
[1759269920354,2.35681239,210.8,210.78,0.72]
[1759269920859,2.35681239,210.8,210.76,0.72]
[1759269921057,2.35681239,210.8,210.77,0.72]
[1759269921247,2.35681239,210.78,210.73,0.72]
[1759269921460,2.35681239,210.76,210.74,0.72]
[1759269921846,4.74495848,210.75,210.74,0.72]
[1759269922063,16.60735468,210.75,210.68,0.2]
[1759269922269,16.60735468,210.75,210.72,0.72]
[1759269922449,16.60735468,210.75,210.73,0.72]
[1759269922649,18.96416707,210.75,210.73,0.72]
[1759269922850,4.74495848,210.75,210.73,0.72]
[1759269923050,4.74495848,210.75,210.74,0.66]
[1759269923244,4.74450823,210.77,210.74,0.66]
[1759269923456,2.35681239,210.8,210.74,0.66]
[1759269923672,4.74383301,210.8,210.74,0.66]
[1759269924168,2.35681239,210.78,210.74,0.66]
[1759269924376,2.35681239,210.79,210.74,0.66]
[1759269924745,2.35681239,210.79,210.75,0.66]
[1759269925145,2.35681239,210.78,210.68,25.74639606]
[1759269925468,2.35681239,210.77,210.75,0.66]
[1759269926775,7.10154573,210.76,210.69,0.66]
[1759269926981,2.35681239,210.74,210.69,0.66]
[1759269927147,2.35681239,210.73,210.7,0.66]
[1759269927349,2.35681239,210.73,210.71,0.66]
[1759269928667,4.74563401,210.72,210.71,0.66]
[1759269929847,7.1024464,210.72,210.68,0.2]
[1759269930042,7.1024464,210.72,210.7,0.66]
[1759269930271,23.72300326,210.77,210.71,0.66]
[1759269930272,40.32878206,210.77,210.71,0.66]
[1759269930573,1.51039608,210.73,210.71,0.66]
[1759269931378,6.25603009,210.72,210.68,0.86]
[1759269931564,4.74563401,210.72,210.69,0.66]
[1759269931752,18.12011513,210.72,210.7,0.66]
[1759269932471,6.25603009,210.72,210.7,0.66]
[1759269932650,6.25603009,210.72,210.68,0.2]
[1759269932971,6.25603009,210.72,210.69,0.66]
[1759269933166,4.74543494,210.73,210.69,0.66]
[1759269933377,20.8,210.72,210.69,0.66]
[1759269933566,27.05606031,210.72,210.69,0.66]
[1759269933882,20.8,210.7,210.69,0.66]
[1759269934763,20.8,210.69,210.68,0.2]
[1759269935072,22.31039608,210.69,210.64,0.2]
[1759269935254,1.51039608,210.65,210.64,0.2]
[1759269935575,27.05760709,210.65,210.64,0.2]
[1759269935973,6.25760709,210.65,210.64,0.2]
[1759269936558,6.25760709,210.65,210.54,0.66]
[1759269936559,34.39559401,210.64,210.54,0.66]
[1759269936864,1.51039608,210.59,210.54,0.66]
[1759269937051,1.51039608,210.58,210.55,0.66]
[1759269937251,1.51039608,210.56,210.52,0.2]
[1759269937473,1.51039608,210.55,210.52,0.86]
[1759269937781,20.8,210.53,210.52,0.2]
[1759269937966,20.8,210.53,210.52,0.86]
[1759269939784,25.54991687,210.53,210.52,0.86]
[1759269939973,25.54991687,210.53,210.52,0.2]
[1759269940480,29.22737501,210.53,210.52,0.2]
[1759269942758,25.54991687,210.53,210.52,0.86]
[1759269943177,4.74948099,210.55,210.52,0.86]
[1759269943377,3.67745814,210.58,210.53,0.66]
[1759269943579,4.74878905,210.58,210.52,0.2]
[1759269943877,4.74924012,210.56,210.54,0.66]
[1759269944079,20.8,210.55,210.54,0.66]
[1759269944384,20.8,210.55,210.52,0.2]
[1759269944569,20.8,210.55,210.52,0.86]
[1759269945199,20.8,210.55,210.53,0.66]
[1759269945485,20.29979856,210.56,210.53,0.66]
[1759269945679,20.29979856,210.56,210.52,0.2]
[1759269945880,8.42669826,210.56,210.53,0.66]
[1759269946258,20.8,210.54,210.53,0.66]
[1759269946596,20.8,210.53,210.52,0.2]
[1759269948687,25.54991687,210.53,210.52,0.2]
[1759269951169,20.8,210.56,210.52,0.86]
[1759269951375,24.47745814,210.56,210.53,0.66]
[1759269951589,3.67745814,210.54,210.52,0.2]
[1759269952185,3.67745814,210.54,210.53,0.66]
[1759269952672,3.67745814,210.62,210.53,0.66]
[1759269952875,3.67745814,210.64,210.53,0.94432314]
[1759269953077,20.8,210.61,210.54,5.42959133]
[1759269953287,20.8,210.61,210.55,0.68]
[1759269953683,0.71,210.75,210.56,27.85559401]
[1759269953882,3.67745814,210.72,210.58,13.59559401]
[1759269954077,3.67745814,210.7,210.61,0.28432314]
[1759269954289,3.67745814,210.7,210.62,0.68]
[1759269954676,4.74630974,210.69,210.62,5.42767738]
[1759269954877,20.8,210.68,210.63,0.68]
[1759269955702,4.74630974,210.69,210.63,0.68]
[1759269955903,4.74383301,210.8,210.64,13.87991715]
[1759269956202,4.74383301,210.8,210.67,0.28432314]
[1759269956370,20.8,210.77,210.68,0.68]
[1759269957176,0.1,210.87,210.75,0.28432314]
[1759269957413,0.1,210.87,210.76,0.68]
[1759269957716,0.1,210.87,210.77,13.59559401]
[1759269957868,25.64232838,210.87,210.78,5.42428313]
[1759269958185,25.64232838,210.87,210.79,0.68]
[1759269958498,25.64232838,210.87,210.81,0.28432314]
[1759269958499,0.1,210.87,210.81,0.28432314]
[1759269958809,0.1,210.87,210.82,0.68]
[1759269959601,0.1,210.87,210.84,0.28432314]
[1759269959908,0.1,210.87,210.85,4.74270808]
[1759269960109,0.1,210.87,210.86,0.68]
[1759269964805,0.1,210.87,210.84,0.68]
[1759269965113,0.1,210.87,210.81,0.68]
[1759269965114,25.64230217,210.87,210.81,0.68]
[1759269965310,25.64230217,210.87,210.82,37.0]
[1759269965515,25.64230217,210.87,210.82,37.68]
[1759269966012,25.64230217,210.87,210.82,37.0]
[1759269966512,25.64230217,210.87,210.82,37.68]
[1759269966715,25.64230217,210.87,210.83,0.68]
[1759269967395,25.64230217,210.87,210.82,37.0]
[1759269967594,25.64230217,210.87,210.82,37.68]
[1759269969523,25.64230217,210.87,210.83,34.9]
[1759269970988,25.64230217,210.87,210.83,34.22]
[1759269971195,0.71,210.86,210.83,34.22]
[1759269971414,4.84230217,210.87,210.83,34.22]
[1759269971719,5.55230217,210.87,210.83,34.22]
[1759269972093,4.84230217,210.87,210.83,34.22]
[1759269973015,0.71,210.86,210.84,37.0]
[1759269973213,21.51,210.85,210.84,37.0]
[1759269974115,26.25270808,210.85,210.84,37.0]
[1759269974505,25.54270808,210.85,210.84,37.0]
[1759269974808,26.25270808,210.85,210.84,37.0]
[1759269975004,26.25270808,210.85,210.83,71.22]
[1759269975202,21.51,210.84,210.83,71.22]
[1759269976210,26.25293302,210.84,210.83,71.22]
[1759269978426,25.54360798,210.81,210.8,37.0]
[1759269978726,20.8,210.8,210.78,37.0]
[1759269979024,25.17745814,210.8,210.78,37.0]
[1759269979524,25.17745814,210.8,210.79,34.16]
[1759269980408,25.54383301,210.8,210.79,34.16]
[1759269980818,4.74383301,210.8,210.79,34.87]
[1759269981611,4.74383301,210.8,210.79,0.71]
[1759269981807,20.8,210.77,210.76,37.0]
[1759269982008,20.8,210.77,210.76,61.56]
[1759269982222,20.8,210.77,210.76,62.27]
[1759269982423,25.54450823,210.77,210.76,62.27]
[1759269982832,25.54450823,210.77,210.76,61.56]
[1759269983719,29.22196637,210.77,210.76,61.56]
[1759269985044,25.54450823,210.77,210.76,61.56]
[1759269986535,25.54450823,210.77,210.76,62.21]
[1759269986720,25.54450823,210.77,210.76,61.56]
[1759269988804,25.54450823,210.77,210.76,37.0]
[1759269989012,25.54450823,210.77,210.76,71.18]
[1759269994919,4.74450823,210.77,210.76,71.18]
[1759269995135,25.54450823,210.77,210.76,71.12]
[1759269998743,4.74518363,210.74,210.66,211.9]
[1759269998943,20.8,210.72,210.71,0.65]
[1759269999148,20.8,210.72,210.71,34.77]
[1759270000027,20.8,210.72,210.71,34.12]
[1759270000237,5.3534717,210.73,210.71,34.12]
[1759270000544,26.1534717,210.72,210.71,34.12]
[1759270000726,30.89910571,210.72,210.71,34.12]
[1759270001444,25.54563401,210.72,210.71,34.12]
[1759270001745,30.89910571,210.72,210.71,34.12]
[1759270004151,30.89910571,210.72,210.67,37.0]
[1759270004152,43.42319075,210.72,210.67,37.0]
[1759270004445,5.3534717,210.69,210.67,37.0]
[1759270005355,5.3534717,210.69,210.68,34.12]
[1759270006142,10.09978144,210.69,210.68,34.12]
[1759270009451,25.54630974,210.69,210.68,34.12]
[1759270009660,30.89978144,210.69,210.68,34.12]
[1759270010549,13.59559401,210.68,210.54,18.62938917]
[1759270010751,20.8,210.66,210.65,37.02]
[1759270010939,21.46,210.66,210.65,37.02]
[1759270011844,30.90045736,210.66,210.65,71.14]
[1759270013440,30.90045736,210.66,210.65,71.84]
[1759270013767,30.90045736,210.66,210.65,71.14]
[1759270014256,27.90859892,210.66,210.65,71.14]
[1759270017066,25.54698566,210.66,210.65,71.14]